[Event "Late-Titled-Tuesday-Blitz-May-14-2024"]
[Site "Chess.com"]
[Date "2024.05.14"]
[Round "7"]
[White "Grischuk"]
[Black "Jarming"]
[Result "1-0"]
[WhiteElo "3117"]
[BlackElo "2691"]
[TimeControl "180+1"]
[EndTime "15:16:41 PDT"]
[Termination "Grischuk won by resignation"]

1. d4 {[%clk 0:03:00.9]} 1... Nf6 {[%clk 0:02:51.8]} 2. c4 {[%clk 0:03:01.3]}
2... g6 {[%clk 0:02:51.7]} 3. g3 {[%clk 0:03:01.2]} 3... Bg7 {[%clk 0:02:51.4]}
4. Bg2 {[%clk 0:03:01.8]} 4... c6 {[%clk 0:02:52]} 5. e4 {[%clk 0:03:00.7]} 5...
d5 {[%clk 0:02:52.9]} 6. cxd5 {[%clk 0:02:57.8]} 6... cxd5 {[%clk 0:02:53]} 7.
e5 {[%clk 0:02:58.5]} 7... Ng8 {[%clk 0:02:47]} 8. Nc3 {[%clk 0:02:57.7]} 8...
e6 {[%clk 0:02:45.8]} 9. Nge2 {[%clk 0:02:51.5]} 9... a6 {[%clk 0:02:41.4]} 10.
h4 {[%clk 0:02:50.4]} 10... h6 {[%clk 0:02:41.2]} 11. h5 {[%clk 0:02:37.6]}
11... g5 {[%clk 0:02:40.5]} 12. f4 {[%clk 0:02:38.2]} 12... gxf4 {[%clk
0:02:39.2]} 13. Bxf4 {[%clk 0:02:37.1]} 13... Ne7 {[%clk 0:02:39]} 14. Qd2
{[%clk 0:02:35.9]} 14... Nbc6 {[%clk 0:02:36.3]} 15. g4 {[%clk 0:02:35.7]} 15...
Bd7 {[%clk 0:02:33.6]} 16. g5 {[%clk 0:02:33.4]} 16... hxg5 {[%clk 0:02:28]} 17.
Bxg5 {[%clk 0:02:34.3]} 17... Qa5 {[%clk 0:02:27.9]} 18. h6 {[%clk 0:02:33.6]}
18... Bf8 {[%clk 0:02:23.3]} 19. Ng3 {[%clk 0:01:44.9]} 19... Rc8 {[%clk
0:01:54.5]} 20. Nh5 {[%clk 0:01:24.9]} 20... Qb4 {[%clk 0:01:49.4]} 21. Rd1
{[%clk 0:01:21.8]} 21... Na5 {[%clk 0:01:45]} 22. Nf6+ {[%clk 0:01:09.6]} 22...
Kd8 {[%clk 0:01:38]} 23. Ncxd5 {[%clk 0:01:06.1]} 23... Qxd2+ {[%clk 0:01:36]}
24. Bxd2 {[%clk 0:01:06.1]} 24... Nc4 {[%clk 0:01:34]} 25. Nxe7 {[%clk 0:01:04]}
25... Bxe7 {[%clk 0:01:28]} 26. Bc1 {[%clk 0:01:01]} 26... Bc6 {[%clk
0:01:25.6]} 27. Bxc6 {[%clk 0:01:00.3]} 27... Rxc6 {[%clk 0:01:26.5]} 28. h7
{[%clk 0:00:54.2]} 28... Bxf6 {[%clk 0:00:53.3]} 29. exf6 {[%clk 0:00:54.1]}
29... Rd6 {[%clk 0:00:49.2]} 30. Ke2 {[%clk 0:00:51]} 30... Rc6 {[%clk
0:00:29.8]} 31. Rdg1 {[%clk 0:00:46.5]} 31... Kd7 {[%clk 0:00:30.1]} 32. Rg7
{[%clk 0:00:45.9]} 32... Nd6 {[%clk 0:00:28.1]} 33. Bf4 {[%clk 0:00:43]} 33...
Rc2+ {[%clk 0:00:16.1]} 34. Kd3 {[%clk 0:00:37.4]} 34... Rcc8 {[%clk 0:00:16]}
35. Bxd6 {[%clk 0:00:34.8]} 35... Kxd6 {[%clk 0:00:16.9]} 36. Rxf7 {[%clk
0:00:35.4]} 36... b5 {[%clk 0:00:16.6]} 37. Rg7 {[%clk 0:00:30.1]} 37... a5
{[%clk 0:00:15.7]} 38. f7 {[%clk 0:00:29.9]} 38... Rcf8 {[%clk 0:00:14.6]} 39.
Rg8 {[%clk 0:00:29.8]} 39... Ke7 {[%clk 0:00:15.1]} 40. a3 {[%clk 0:00:23.6]}
40... a4 {[%clk 0:00:13.9]} 41. Kc3 {[%clk 0:00:23.2]} 41... Rc8+ {[%clk
0:00:06.7]} 42. Kb4 {[%clk 0:00:22.6]} 42... Kxf7 {[%clk 0:00:07.2]} 43. Rxc8
{[%clk 0:00:22.2]} 43... Rxc8 {[%clk 0:00:06.7]} 44. h8=Q {[%clk 0:00:22.4]} 1-0

[Event "Late-Titled-Tuesday-Blitz-May-14-2024"]
[Site "Chess.com"]
[Date "2024.05.14"]
[Round "7"]
[White "Mischuk_D"]
[Black "Magicmaster17"]
[Result "0-1"]
[WhiteElo "2704"]
[BlackElo "2892"]
[TimeControl "180+1"]
[EndTime "15:16:41 PDT"]
[Termination "Magicmaster17 won by resignation"]

1. d4 {[%clk 0:03:00.9]} 1... Nf6 {[%clk 0:02:59.4]} 2. c4 {[%clk 0:03:00.6]}
2... e6 {[%clk 0:02:58.6]} 3. g3 {[%clk 0:03:00.2]} 3... Bb4+ {[%clk 0:02:56.6]}
4. Nd2 {[%clk 0:02:58.2]} 4... c5 {[%clk 0:02:55.7]} 5. dxc5 {[%clk 0:02:45.8]}
5... Bxc5 {[%clk 0:02:53]} 6. Nb3 {[%clk 0:02:42.7]} 6... Bb6 {[%clk 0:02:44.5]}
7. Bg2 {[%clk 0:02:35.4]} 7... d5 {[%clk 0:02:44.1]} 8. cxd5 {[%clk 0:02:30.3]}
8... exd5 {[%clk 0:02:43.9]} 9. Nf3 {[%clk 0:02:29.2]} 9... Nc6 {[%clk
0:02:42.5]} 10. O-O {[%clk 0:02:29.1]} 10... O-O {[%clk 0:02:42]} 11. Nbd4
{[%clk 0:02:29.4]} 11... Re8 {[%clk 0:02:41.8]} 12. Bf4 {[%clk 0:02:24.4]} 12...
Bg4 {[%clk 0:02:38.3]} 13. Nxc6 {[%clk 0:02:22.7]} 13... bxc6 {[%clk 0:02:36.4]}
14. Rc1 {[%clk 0:02:21.1]} 14... c5 {[%clk 0:02:07.9]} 15. Bg5 {[%clk
0:02:10.1]} 15... d4 {[%clk 0:02:04.7]} 16. h3 {[%clk 0:02:06.3]} 16... Be6
{[%clk 0:01:55.1]} 17. Nd2 {[%clk 0:01:55.6]} 17... h6 {[%clk 0:01:52.2]} 18.
Bxf6 {[%clk 0:01:52.2]} 18... Qxf6 {[%clk 0:01:53.1]} 19. Nc4 {[%clk 0:01:50.4]}
19... Rad8 {[%clk 0:01:51.5]} 20. Qd2 {[%clk 0:01:40.6]} 20... Bxc4 {[%clk
0:01:30.6]} 21. Rxc4 {[%clk 0:01:39.9]} 21... Qe6 {[%clk 0:01:31.5]} 22. Rc2
{[%clk 0:01:32.3]} 22... c4 {[%clk 0:01:31.3]} 23. Qb4 {[%clk 0:01:14.3]} 23...
d3 {[%clk 0:01:29.5]} 24. exd3 {[%clk 0:01:14.9]} 24... cxd3 {[%clk 0:01:23]}
25. Rd2 {[%clk 0:01:15.3]} 25... Rd4 {[%clk 0:01:17]} 26. Qb5 {[%clk 0:00:59.9]}
26... Red8 {[%clk 0:01:16.3]} 27. b4 {[%clk 0:00:57.8]} 27... Qd6 {[%clk
0:01:05.3]} 28. a3 {[%clk 0:00:54.8]} 28... g6 {[%clk 0:00:58.5]} 29. Kh1 {[%clk
0:00:51]} 29... h5 {[%clk 0:00:58.3]} 30. Qg5 {[%clk 0:00:33.6]} 30... Re8
{[%clk 0:00:51.4]} 31. Rfd1 {[%clk 0:00:31.9]} 31... Re2 {[%clk 0:00:49.4]} 32.
Bf1 {[%clk 0:00:29.3]} 32... Qc6+ {[%clk 0:00:35.7]} 33. Kg1 {[%clk 0:00:29]}
33... Qf3 {[%clk 0:00:23.8]} 34. Rxe2 {[%clk 0:00:14.2]} 34... dxe2 {[%clk
0:00:23.3]} 35. Rxd4 {[%clk 0:00:13.9]} 35... Bxd4 {[%clk 0:00:20.9]} 36. Qd8+
{[%clk 0:00:13.7]} 36... Kh7 {[%clk 0:00:20.9]} 37. Qxd4 {[%clk 0:00:12.5]}
37... e1=Q {[%clk 0:00:20.9]} 38. Qc4 {[%clk 0:00:12.3]} 38... Qee4 {[%clk
0:00:18.5]} 39. Qxf7+ {[%clk 0:00:10.9]} 39... Qxf7 {[%clk 0:00:17.9]} 0-1

[Event "Late-Titled-Tuesday-Blitz-May-14-2024"]
[Site "Chess.com"]
[Date "2024.05.14"]
[Round "7"]
[White "Bala-Afiada"]
[Black "rhwr"]
[Result "0-1"]
[WhiteElo "1963"]
[BlackElo "2298"]
[TimeControl "180+1"]
[EndTime "15:16:41 PDT"]
[Termination "rhwr won by resignation"]

1. d4 {[%clk 0:03:00.9]} 1... c5 {[%clk 0:02:58.1]} 2. d5 {[%clk 0:03:00.8]}
2... Nf6 {[%clk 0:02:57.5]} 3. c4 {[%clk 0:03:01.2]} 3... e5 {[%clk 0:02:57.9]}
4. dxe6 {[%clk 0:03:01.9]} 4... fxe6 {[%clk 0:02:57.7]} 5. Nc3 {[%clk
0:03:01.9]} 5... d5 {[%clk 0:02:58.2]} 6. cxd5 {[%clk 0:03:01.9]} 6... exd5
{[%clk 0:02:58.5]} 7. Bg5 {[%clk 0:02:58.7]} 7... d4 {[%clk 0:02:53.5]} 8. Ne4
{[%clk 0:02:38.3]} 8... Qa5+ {[%clk 0:02:50.9]} 9. Qd2 {[%clk 0:02:34.5]} 9...
Qxd2+ {[%clk 0:02:50.4]} 10. Nxd2 {[%clk 0:02:34.6]} 10... Be7 {[%clk
0:02:43.4]} 11. Ngf3 {[%clk 0:02:25.1]} 11... b6 {[%clk 0:02:39.7]} 12. g3
{[%clk 0:02:23.3]} 12... Bb7 {[%clk 0:02:39.7]} 13. Bg2 {[%clk 0:02:24]} 13...
Nbd7 {[%clk 0:02:39.5]} 14. O-O {[%clk 0:02:21.4]} 14... O-O {[%clk 0:02:37.7]}
15. Nc4 {[%clk 0:02:13.7]} 15... Rae8 {[%clk 0:02:34.7]} 16. Rad1 {[%clk
0:02:01.5]} 16... Bd5 {[%clk 0:02:20.7]} 17. b3 {[%clk 0:01:56.1]} 17... h6
{[%clk 0:02:19.8]} 18. Bf4 {[%clk 0:01:42]} 18... g5 {[%clk 0:02:17.6]} 19. Bc1
{[%clk 0:01:20.8]} 19... Be6 {[%clk 0:01:58.5]} 20. e3 {[%clk 0:01:11.7]} 20...
dxe3 {[%clk 0:01:56.5]} 21. Nxe3 {[%clk 0:01:02.9]} 21... Ne4 {[%clk 0:01:46.2]}
22. Bb2 {[%clk 0:00:50.2]} 22... Bf6 {[%clk 0:01:43]} 23. Bxf6 {[%clk
0:00:48.6]} 23... Ndxf6 {[%clk 0:01:43]} 24. h3 {[%clk 0:00:38.5]} 24... Rd8
{[%clk 0:01:42.2]} 25. Rxd8 {[%clk 0:00:37.3]} 25... Rxd8 {[%clk 0:01:41.6]} 26.
Rd1 {[%clk 0:00:37.4]} 26... Rxd1+ {[%clk 0:01:37.9]} 27. Nxd1 {[%clk
0:00:38.3]} 27... b5 {[%clk 0:01:31.9]} 28. Ne3 {[%clk 0:00:33.2]} 28... c4
{[%clk 0:01:31]} 29. bxc4 {[%clk 0:00:32]} 29... bxc4 {[%clk 0:01:31.9]} 30. Nd4
{[%clk 0:00:29.3]} 30... Bf7 {[%clk 0:01:29.2]} 31. Ndc2 {[%clk 0:00:25.7]}
31... c3 {[%clk 0:01:27]} 32. Kf1 {[%clk 0:00:22.9]} 32... Bxa2 {[%clk
0:01:25.8]} 33. Ke2 {[%clk 0:00:21.5]} 33... Bc4+ {[%clk 0:01:25.5]} 34. Ke1
{[%clk 0:00:20.5]} 34... a5 {[%clk 0:01:23.1]} 35. Nf5 {[%clk 0:00:20.5]} 35...
Kh7 {[%clk 0:01:21.4]} 36. Nfe3 {[%clk 0:00:19.8]} 36... Bf7 {[%clk 0:01:18.3]}
37. Nd4 {[%clk 0:00:17.5]} 37... a4 {[%clk 0:01:16.1]} 38. Ndc2 {[%clk
0:00:17.1]} 38... Bb3 {[%clk 0:01:14.6]} 39. Kd1 {[%clk 0:00:16.4]} 39... Nxf2+
{[%clk 0:01:14.3]} 40. Kc1 {[%clk 0:00:15.8]} 40... N2e4 {[%clk 0:01:12.5]} 41.
Kb1 {[%clk 0:00:15.7]} 41... Nxg3 {[%clk 0:01:12.2]} 42. Ka1 {[%clk 0:00:15.4]}
42... h5 {[%clk 0:01:11.7]} 43. Nd4 {[%clk 0:00:14.8]} 43... g4 {[%clk
0:01:10.8]} 44. hxg4 {[%clk 0:00:14.8]} 44... Nxg4 {[%clk 0:01:10.1]} 45. Nef5
{[%clk 0:00:10.2]} 45... Nxf5 {[%clk 0:01:09.1]} 46. Nxf5 {[%clk 0:00:11.1]}
46... Kg6 {[%clk 0:01:07.4]} 47. Be4 {[%clk 0:00:11.3]} 47... Kg5 {[%clk
0:01:07.8]} 48. Nd4 {[%clk 0:00:09.8]} 48... h4 {[%clk 0:01:05.7]} 49. Nf3+
{[%clk 0:00:09.9]} 49... Kf4 {[%clk 0:01:06.2]} 50. Bc6 {[%clk 0:00:06.6]} 50...
h3 {[%clk 0:01:05.4]} 51. Kb1 {[%clk 0:00:06]} 51... h2 {[%clk 0:01:04.4]} 52.
Ne1 {[%clk 0:00:02.8]} 52... Nf2 {[%clk 0:01:01.5]} 53. Ng2+ {[%clk 0:00:00.5]}
53... Kg3 {[%clk 0:01:00.9]} 54. Ne3 {[%clk 0:00:00.7]} 54... Kf4 {[%clk
0:01:00.4]} 55. Bh1 {[%clk 0:00:01.6]} 55... Nxh1 {[%clk 0:00:58.8]} 0-1

[Event "Late-Titled-Tuesday-Blitz-May-14-2024"]
[Site "Chess.com"]
[Date "2024.05.14"]
[Round "7"]
[White "Seppppppy"]
[Black "Veleamater"]
[Result "0-1"]
[WhiteElo "2329"]
[BlackElo "2440"]
[TimeControl "180+1"]
[EndTime "15:16:42 PDT"]
[Termination "Veleamater won by resignation"]

1. e4 {[%clk 0:02:58.3]} 1... c5 {[%clk 0:02:58.3]} 2. Nf3 {[%clk 0:02:55.4]}
2... e6 {[%clk 0:02:58.1]} 3. c3 {[%clk 0:02:50.1]} 3... d5 {[%clk 0:02:56]} 4.
exd5 {[%clk 0:02:47.7]} 4... exd5 {[%clk 0:02:56.1]} 5. d4 {[%clk 0:02:36.8]}
5... Nf6 {[%clk 0:02:55.7]} 6. Bg5 {[%clk 0:02:35.1]} 6... cxd4 {[%clk
0:02:49.5]} 7. cxd4 {[%clk 0:02:33.2]} 7... Be7 {[%clk 0:02:46.9]} 8. Nc3 {[%clk
0:02:33.2]} 8... O-O {[%clk 0:02:45.1]} 9. Bd3 {[%clk 0:02:32.7]} 9... Bg4
{[%clk 0:02:41.4]} 10. h3 {[%clk 0:02:12.4]} 10... Bh5 {[%clk 0:02:39.7]} 11.
Qc2 {[%clk 0:02:02.4]} 11... Bxf3 {[%clk 0:02:35]} 12. gxf3 {[%clk 0:02:03.3]}
12... h6 {[%clk 0:02:35.4]} 13. Bxf6 {[%clk 0:01:57.3]} 13... Bxf6 {[%clk
0:02:35.6]} 14. O-O-O {[%clk 0:01:58]} 14... Nc6 {[%clk 0:02:32.6]} 15. Qb3
{[%clk 0:01:48.3]} 15... Nxd4 {[%clk 0:02:10.8]} 16. Qxb7 {[%clk 0:01:40.9]}
16... Rc8 {[%clk 0:01:57.7]} 17. Kb1 {[%clk 0:01:36.8]} 17... Nxf3 {[%clk
0:01:47.6]} 18. Nxd5 {[%clk 0:01:32.4]} 18... Rb8 {[%clk 0:01:44.1]} 19. Qc6
{[%clk 0:00:37.9]} 19... Bxb2 {[%clk 0:01:25.9]} 20. Bb5 {[%clk 0:00:22.7]}
20... Nd4 {[%clk 0:01:16.2]} 21. Rxd4 {[%clk 0:00:18.2]} 21... Bxd4 {[%clk
0:01:15.3]} 22. Rd1 {[%clk 0:00:18.8]} 22... Qh4 {[%clk 0:01:09.5]} 23. Qc4
{[%clk 0:00:10.2]} 23... Qxf2 {[%clk 0:01:09]} 24. Rxd4 {[%clk 0:00:08.4]} 24...
Rxb5+ {[%clk 0:01:08.2]} 25. Kc1 {[%clk 0:00:08.8]} 25... Qe1+ {[%clk
0:00:51.6]} 26. Kc2 {[%clk 0:00:09.1]} 26... Qb1+ {[%clk 0:00:50]} 27. Kc3
{[%clk 0:00:09.4]} 27... Qb2+ {[%clk 0:00:40.5]} 28. Kd3 {[%clk 0:00:09.6]}
28... Re8 {[%clk 0:00:36.6]} 29. Re4 {[%clk 0:00:05.8]} 29... Qb1+ {[%clk
0:00:34]} 30. Ke3 {[%clk 0:00:04.1]} 30... Qxe4+ {[%clk 0:00:33.6]} 31. Qxe4
{[%clk 0:00:05]} 31... Rxe4+ {[%clk 0:00:33.8]} 32. Kxe4 {[%clk 0:00:05.9]}
32... Ra5 {[%clk 0:00:33.5]} 33. Nc3 {[%clk 0:00:05.9]} 33... Ra3 {[%clk
0:00:33.2]} 34. Kd4 {[%clk 0:00:06.5]} 34... Rxc3 {[%clk 0:00:32.8]} 35. Kxc3
{[%clk 0:00:07]} 35... f5 {[%clk 0:00:33.4]} 36. Kc4 {[%clk 0:00:07.1]} 36... g5
{[%clk 0:00:33.2]} 37. Kd5 {[%clk 0:00:07.2]} 37... f4 {[%clk 0:00:33.5]} 38.
Ke4 {[%clk 0:00:06.9]} 38... Kf7 {[%clk 0:00:33.7]} 39. a4 {[%clk 0:00:07.8]}
39... Ke6 {[%clk 0:00:33.5]} 40. a5 {[%clk 0:00:08.6]} 40... a6 {[%clk
0:00:33.9]} 41. h4 {[%clk 0:00:09.4]} 41... Kf6 {[%clk 0:00:32.3]} 42. h5 {[%clk
0:00:09.3]} 42... Ke6 {[%clk 0:00:31.7]} 43. Kd4 {[%clk 0:00:10.2]} 43... f3
{[%clk 0:00:31.3]} 44. Ke4 {[%clk 0:00:11.1]} 44... g4 {[%clk 0:00:31.6]} 0-1

[Event "Late-Titled-Tuesday-Blitz-May-14-2024"]
[Site "Chess.com"]
[Date "2024.05.14"]
[Round "7"]
[White "HowTo2Draw"]
[Black "lamomiajunior"]
[Result "0-1"]
[WhiteElo "2582"]
[BlackElo "2787"]
[TimeControl "180+1"]
[EndTime "15:16:46 PDT"]
[Termination "lamomiajunior won on time"]

1. c4 {[%clk 0:03:00.9]} 1... Nf6 {[%clk 0:02:59.4]} 2. Nc3 {[%clk 0:02:59.1]}
2... g6 {[%clk 0:02:59.8]} 3. g3 {[%clk 0:02:58.3]} 3... Bg7 {[%clk 0:03:00]} 4.
Bg2 {[%clk 0:02:58.9]} 4... O-O {[%clk 0:03:00.6]} 5. Nf3 {[%clk 0:02:59.5]}
5... d6 {[%clk 0:03:00.6]} 6. d4 {[%clk 0:02:58.3]} 6... c6 {[%clk 0:02:59.9]}
7. O-O {[%clk 0:02:58.7]} 7... Bf5 {[%clk 0:03:00.1]} 8. b3 {[%clk 0:02:56]}
8... Ne4 {[%clk 0:02:59.5]} 9. Bb2 {[%clk 0:02:55.9]} 9... d5 {[%clk 0:02:57.5]}
10. Nh4 {[%clk 0:02:51.7]} 10... Nxc3 {[%clk 0:02:56.4]} 11. Bxc3 {[%clk
0:02:51.3]} 11... Bg4 {[%clk 0:02:54.4]} 12. h3 {[%clk 0:02:49.4]} 12... Be6
{[%clk 0:02:53.8]} 13. Qd3 {[%clk 0:02:45.5]} 13... Nd7 {[%clk 0:02:47.7]} 14.
cxd5 {[%clk 0:02:38.8]} 14... cxd5 {[%clk 0:02:46.5]} 15. f4 {[%clk 0:02:38.4]}
15... Nb6 {[%clk 0:02:31.6]} 16. f5 {[%clk 0:02:26.3]} 16... Bd7 {[%clk
0:02:31.8]} 17. Kh2 {[%clk 0:02:20.5]} 17... e6 {[%clk 0:02:30.8]} 18. fxg6
{[%clk 0:02:04.3]} 18... fxg6 {[%clk 0:02:26.9]} 19. a4 {[%clk 0:02:00.8]} 19...
a5 {[%clk 0:02:13.2]} 20. Rxf8+ {[%clk 0:01:45.3]} 20... Qxf8 {[%clk 0:02:11.2]}
21. Rf1 {[%clk 0:01:44]} 21... Qd6 {[%clk 0:02:11.7]} 22. Nxg6 {[%clk
0:01:36.8]} 22... hxg6 {[%clk 0:02:11.3]} 23. Qxg6 {[%clk 0:01:37.1]} 23... Be8
{[%clk 0:02:05.8]} 24. Qg4 {[%clk 0:01:29.1]} 24... Bf7 {[%clk 0:01:55.7]} 25.
Bd2 {[%clk 0:01:19.2]} 25... e5 {[%clk 0:01:46.1]} 26. Bg5 {[%clk 0:01:13.3]}
26... Qg6 {[%clk 0:01:42.8]} 27. dxe5 {[%clk 0:01:00.9]} 27... Bxe5 {[%clk
0:01:43.7]} 28. h4 {[%clk 0:00:47.7]} 28... Be6 {[%clk 0:01:37.1]} 29. Qf3
{[%clk 0:00:43.8]} 29... Nd7 {[%clk 0:01:32.7]} 30. Qe3 {[%clk 0:00:36.5]} 30...
Rc8 {[%clk 0:01:27.1]} 31. Rd1 {[%clk 0:00:23.7]} 31... Rc3 {[%clk 0:01:24.9]}
32. Rd3 {[%clk 0:00:21.9]} 32... Rxd3 {[%clk 0:01:17.4]} 33. exd3 {[%clk
0:00:22.8]} 33... d4 {[%clk 0:01:13.2]} 34. Qf3 {[%clk 0:00:22.2]} 34... b6
{[%clk 0:01:08.8]} 35. Qa8+ {[%clk 0:00:20.9]} 35... Kg7 {[%clk 0:01:06.6]} 36.
Be4 {[%clk 0:00:21.5]} 36... Qf7 {[%clk 0:01:06.9]} 37. Kg2 {[%clk 0:00:19.1]}
37... Bxb3 {[%clk 0:00:56.9]} 38. Qc6 {[%clk 0:00:18.3]} 38... Be6 {[%clk
0:00:57.4]} 39. h5 {[%clk 0:00:16.2]} 39... Bf5 {[%clk 0:00:31.6]} 40. h6+
{[%clk 0:00:09.1]} 40... Kh7 {[%clk 0:00:31.9]} 41. Bd5 {[%clk 0:00:09.4]} 41...
Qh5 {[%clk 0:00:28.4]} 42. Qc8 {[%clk 0:00:01.2]} 42... Qxg5 {[%clk 0:00:24.4]}
0-1

[Event "Late-Titled-Tuesday-Blitz-May-14-2024"]
[Site "Chess.com"]
[Date "2024.05.14"]
[Round "7"]
[White "GMMikhailKazakov"]
[Black "osielchesslover2011"]
[Result "1-0"]
[WhiteElo "2518"]
[BlackElo "2251"]
[TimeControl "180+1"]
[EndTime "15:16:48 PDT"]
[Termination "GMMikhailKazakov won by checkmate"]

1. e4 {[%clk 0:03:00.9]} 1... c5 {[%clk 0:02:59]} 2. Nf3 {[%clk 0:03:00.6]} 2...
d6 {[%clk 0:02:59.3]} 3. d4 {[%clk 0:03:00.6]} 3... cxd4 {[%clk 0:03:00]} 4.
Nxd4 {[%clk 0:03:01]} 4... Nf6 {[%clk 0:03:00.9]} 5. Nc3 {[%clk 0:02:59.9]} 5...
a6 {[%clk 0:03:01.5]} 6. Be2 {[%clk 0:03:00.2]} 6... e6 {[%clk 0:03:01.4]} 7.
O-O {[%clk 0:02:58.3]} 7... Nbd7 {[%clk 0:03:01.6]} 8. Be3 {[%clk 0:02:58.5]}
8... b5 {[%clk 0:02:59.1]} 9. a3 {[%clk 0:02:55.3]} 9... Bb7 {[%clk 0:02:58.6]}
10. f3 {[%clk 0:02:54.1]} 10... Be7 {[%clk 0:02:55.9]} 11. Qe1 {[%clk
0:02:52.6]} 11... Rc8 {[%clk 0:02:54.6]} 12. Rd1 {[%clk 0:02:51.6]} 12... Ne5
{[%clk 0:02:49.3]} 13. Qf2 {[%clk 0:02:50.9]} 13... Nc4 {[%clk 0:02:44.4]} 14.
Bxc4 {[%clk 0:02:48.1]} 14... Rxc4 {[%clk 0:02:44.4]} 15. Rd3 {[%clk 0:02:46.3]}
15... Qc8 {[%clk 0:02:39.3]} 16. Rfd1 {[%clk 0:02:44.9]} 16... O-O {[%clk
0:02:38.4]} 17. Nb3 {[%clk 0:02:41.2]} 17... Nd7 {[%clk 0:02:20.3]} 18. Na5
{[%clk 0:02:37.3]} 18... Ne5 {[%clk 0:02:14.4]} 19. Nxc4 {[%clk 0:02:29]} 19...
Nxd3 {[%clk 0:02:12]} 20. cxd3 {[%clk 0:02:29.9]} 20... bxc4 {[%clk 0:02:11.5]}
21. d4 {[%clk 0:02:30.6]} 21... f5 {[%clk 0:01:53.3]} 22. exf5 {[%clk
0:02:14.1]} 22... Rxf5 {[%clk 0:01:51.1]} 23. Qe2 {[%clk 0:02:13.9]} 23... Qf8
{[%clk 0:01:39]} 24. Bf2 {[%clk 0:02:08.6]} 24... Qf7 {[%clk 0:01:28.8]} 25. Re1
{[%clk 0:02:03.5]} 25... e5 {[%clk 0:01:00.4]} 26. dxe5 {[%clk 0:01:57.1]} 26...
Rxe5 {[%clk 0:00:59]} 27. Qd2 {[%clk 0:01:49.8]} 27... Rxe1+ {[%clk 0:00:58.1]}
28. Qxe1 {[%clk 0:01:43.8]} 28... Bf6 {[%clk 0:00:57.1]} 29. Qd2 {[%clk
0:01:38.4]} 29... d5 {[%clk 0:00:55.5]} 30. Bd4 {[%clk 0:01:34.5]} 30... Bxd4+
{[%clk 0:00:51.9]} 31. Qxd4 {[%clk 0:01:35.4]} 31... Qe7 {[%clk 0:00:48.9]} 32.
Kf2 {[%clk 0:01:33.3]} 32... Bc6 {[%clk 0:00:38.3]} 33. Nd1 {[%clk 0:01:20.5]}
33... Qf6 {[%clk 0:00:29.8]} 34. Qxf6 {[%clk 0:01:15.3]} 34... gxf6 {[%clk
0:00:28.8]} 35. Ke3 {[%clk 0:01:16]} 35... Kf7 {[%clk 0:00:24.9]} 36. Kd4 {[%clk
0:01:15.6]} 36... Ke6 {[%clk 0:00:25.5]} 37. Ne3 {[%clk 0:01:04.8]} 37... Bb7
{[%clk 0:00:18.8]} 38. g4 {[%clk 0:01:01.1]} 38... h6 {[%clk 0:00:15.9]} 39. f4
{[%clk 0:00:55.7]} 39... Bc6 {[%clk 0:00:11.4]} 40. Nf5 {[%clk 0:00:51.5]} 40...
h5 {[%clk 0:00:07.7]} 41. Ng7+ {[%clk 0:00:51.1]} 41... Kf7 {[%clk 0:00:07.9]}
42. Nxh5 {[%clk 0:00:51.2]} 42... f5 {[%clk 0:00:08]} 43. h3 {[%clk 0:00:48.9]}
43... fxg4 {[%clk 0:00:07.4]} 44. hxg4 {[%clk 0:00:49.8]} 44... Bd7 {[%clk
0:00:06.1]} 45. f5 {[%clk 0:00:48.9]} 45... Bc6 {[%clk 0:00:06.1]} 46. Ke5
{[%clk 0:00:48.4]} 46... Kg8 {[%clk 0:00:02.5]} 47. g5 {[%clk 0:00:48]} 47...
Kf7 {[%clk 0:00:02.1]} 48. g6+ {[%clk 0:00:47.9]} 48... Kg8 {[%clk 0:00:01.2]}
49. f6 {[%clk 0:00:47.7]} 49... Kf8 {[%clk 0:00:00.6]} 50. f7 {[%clk 0:00:44]}
50... d4 {[%clk 0:00:01.2]} 51. Kf6 {[%clk 0:00:43.7]} 51... Bd5 {[%clk
0:00:00.8]} 52. g7# {[%clk 0:00:43.6]} 1-0

[Event "Late-Titled-Tuesday-Blitz-May-14-2024"]
[Site "Chess.com"]
[Date "2024.05.14"]
[Round "7"]
[White "WindWhistler11"]
[Black "Evan_Attaker"]
[Result "1-0"]
[WhiteElo "2538"]
[BlackElo "2633"]
[TimeControl "180+1"]
[EndTime "15:16:49 PDT"]
[Termination "WindWhistler11 won by checkmate"]

1. Nf3 {[%clk 0:02:55.2]} 1... c5 {[%clk 0:02:59.4]} 2. g3 {[%clk 0:02:55]} 2...
b6 {[%clk 0:03:00]} 3. Bg2 {[%clk 0:02:54.8]} 3... Bb7 {[%clk 0:03:00.7]} 4. a3
{[%clk 0:02:54.7]} 4... Nf6 {[%clk 0:03:01.2]} 5. b4 {[%clk 0:02:54.3]} 5... e6
{[%clk 0:03:01.6]} 6. b5 {[%clk 0:02:41.8]} 6... a6 {[%clk 0:02:53.6]} 7. bxa6
{[%clk 0:02:38]} 7... Rxa6 {[%clk 0:02:53.6]} 8. O-O {[%clk 0:02:36.7]} 8... Be7
{[%clk 0:02:53]} 9. c4 {[%clk 0:02:35]} 9... O-O {[%clk 0:02:52.5]} 10. Bb2
{[%clk 0:02:30.8]} 10... Nc6 {[%clk 0:02:49.5]} 11. d3 {[%clk 0:02:21.4]} 11...
Qa8 {[%clk 0:02:45.7]} 12. Nc3 {[%clk 0:02:17.2]} 12... Nd4 {[%clk 0:02:45.1]}
13. e4 {[%clk 0:01:53]} 13... Nxf3+ {[%clk 0:02:18.9]} 14. Qxf3 {[%clk
0:01:47.5]} 14... d6 {[%clk 0:02:12.4]} 15. Qe2 {[%clk 0:01:40.3]} 15... Nd7
{[%clk 0:02:10.2]} 16. Nb5 {[%clk 0:01:33.5]} 16... Qc8 {[%clk 0:02:00.2]} 17.
f4 {[%clk 0:01:30]} 17... Re8 {[%clk 0:01:27.8]} 18. f5 {[%clk 0:01:20.6]} 18...
exf5 {[%clk 0:01:24.1]} 19. Rxf5 {[%clk 0:01:14.3]} 19... Bf8 {[%clk 0:01:18.6]}
20. Raf1 {[%clk 0:01:11.1]} 20... f6 {[%clk 0:01:16.9]} 21. Bh3 {[%clk
0:01:08.4]} 21... Qd8 {[%clk 0:01:11.3]} 22. g4 {[%clk 0:00:56.4]} 22... h6
{[%clk 0:01:02.4]} 23. Bg2 {[%clk 0:00:51.5]} 23... Bc8 {[%clk 0:01:01.6]} 24.
R5f4 {[%clk 0:00:46.3]} 24... Ne5 {[%clk 0:01:01.7]} 25. h4 {[%clk 0:00:46.5]}
25... Bd7 {[%clk 0:00:57.1]} 26. Nc3 {[%clk 0:00:46.1]} 26... Ng6 {[%clk
0:00:44.7]} 27. Nd5 {[%clk 0:00:38.5]} 27... Nxf4 {[%clk 0:00:35.5]} 28. Rxf4
{[%clk 0:00:39.4]} 28... Bc6 {[%clk 0:00:33.3]} 29. Bxf6 {[%clk 0:00:33.3]}
29... Qd7 {[%clk 0:00:31.5]} 30. Bb2 {[%clk 0:00:27.5]} 30... Bxd5 {[%clk
0:00:31.8]} 31. cxd5 {[%clk 0:00:27.7]} 31... Be7 {[%clk 0:00:32.3]} 32. g5
{[%clk 0:00:22.2]} 32... hxg5 {[%clk 0:00:19.1]} 33. hxg5 {[%clk 0:00:22.1]}
33... Bxg5 {[%clk 0:00:18.9]} 34. Rg4 {[%clk 0:00:22.8]} 34... Bh6 {[%clk
0:00:18.6]} 35. d4 {[%clk 0:00:23.1]} 35... Raa8 {[%clk 0:00:17.9]} 36. e5
{[%clk 0:00:23.8]} 36... cxd4 {[%clk 0:00:15.8]} 37. e6 {[%clk 0:00:23.4]} 37...
Qe7 {[%clk 0:00:14.8]} 38. Bxd4 {[%clk 0:00:23.2]} 38... Rf8 {[%clk 0:00:15.3]}
39. Be4 {[%clk 0:00:21.9]} 39... Rxa3 {[%clk 0:00:13.8]} 40. Kg2 {[%clk
0:00:18.8]} 40... Ra4 {[%clk 0:00:14.1]} 41. Bc2 {[%clk 0:00:18.5]} 41... Rb4
{[%clk 0:00:13.2]} 42. Qe4 {[%clk 0:00:18.5]} 42... g5 {[%clk 0:00:10.6]} 43.
Qg6+ {[%clk 0:00:16.9]} 43... Bg7 {[%clk 0:00:09.8]} 44. Qh7# {[%clk 0:00:15.7]}
1-0